[Event "Titled Tuesday Blitz April 05 Late 2022"]
[White "Hess, Robert"]
[Black "Barbosa, Evandro Amorim"]
[WhiteFideId "2022036"]
[BlackFideId "2115824"]
[WhiteElo "2557"]
[BlackElo "2454"]
[Result "0-1"]
[Round "07"]
[TimeControl "180+1"]
[Date "2022.04.05"]
[WhiteClock "0:00:06"]
[BlackClock "0:00:50"]

1. b3 {[%clk 0:03:00]}  d5 {[%clk 0:02:58]} 2. Bb2 {[%clk 0:03:01]}  c5 {[%clk 0:02:59]} 3. d3 {[%clk 0:03:02]}  Nc6 {[%clk 0:02:58]} 4. Nd2 {[%clk 0:03:02]}  Nf6 {[%clk 0:02:58]} 5. h3 {[%clk 0:03:02]}  e5 {[%clk 0:02:58]} 6. g4 {[%clk 0:03:01]}  Bd6 {[%clk 0:02:56]} 7. e3 {[%clk 0:03:01]}  d4 {[%clk 0:02:55]} 8. e4 {[%clk 0:02:58]}  h5 {[%clk 0:02:54]} 9. g5 {[%clk 0:02:55]}  Nd7 {[%clk 0:02:55]} 10. h4 {[%clk 0:02:54]}  Nf8 {[%clk 0:02:55]} 11. Ne2 {[%clk 0:02:48]}  Ng6 {[%clk 0:02:54]} 12. Ng3 {[%clk 0:02:48]}  Nf4 {[%clk 0:02:54]} 13. Nf5 {[%clk 0:02:22]}  Bf8 {[%clk 0:02:43]} 14. Nc4 {[%clk 0:02:04]}  g6 {[%clk 0:02:40]} 15. Ng3 {[%clk 0:02:02]}  Bg4 {[%clk 0:02:34]} 16. f3 {[%clk 0:02:01]}  Be6 {[%clk 0:02:33]} 17. Bc1 {[%clk 0:02:00]}  Qc7 {[%clk 0:02:30]} 18. Ne2 {[%clk 0:01:57]}  Bxc4 {[%clk 0:02:07]} 19. bxc4 {[%clk 0:01:45]}  Bd6 {[%clk 0:02:07]} 20. Bd2 {[%clk 0:01:32]}  O-O {[%clk 0:02:06]} 21. Kf2 {[%clk 0:01:01]}  Kh7 {[%clk 0:02:06]} 22. Rb1 {[%clk 0:00:57]}  b6 {[%clk 0:02:04]} 23. Rb3 {[%clk 0:00:52]}  f6 {[%clk 0:02:00]} 24. Nxf4 {[%clk 0:00:48]}  exf4 {[%clk 0:02:00]} 25. gxf6 {[%clk 0:00:48]}  Rxf6 {[%clk 0:01:59]} 26. Be2 {[%clk 0:00:48]}  Ne5 {[%clk 0:01:56]} 27. Qg1 {[%clk 0:00:46]}  Raf8 {[%clk 0:01:52]} 28. Ke1 {[%clk 0:00:40]}  Qd7 {[%clk 0:01:47]} 29. Kd1 {[%clk 0:00:38]}  Bc7 {[%clk 0:01:42]} 30. Kc1 {[%clk 0:00:37]}  a6 {[%clk 0:01:42]} 31. Qg5 {[%clk 0:00:21]}  b5 {[%clk 0:01:39]} 32. cxb5 {[%clk 0:00:20]}  axb5 {[%clk 0:01:39]} 33. Ra3 {[%clk 0:00:21]}  c4 {[%clk 0:01:23]} 34. Bb4 {[%clk 0:00:17]}  Bd6 {[%clk 0:01:15]} 35. Bxd6 {[%clk 0:00:10]}  Qxd6 {[%clk 0:01:15]} 36. Ra7+ {[%clk 0:00:10]}  R6f7 {[%clk 0:01:13]} 37. Ra5 {[%clk 0:00:06]}  Qb4 {[%clk 0:00:59]} 38. Ra6 {[%clk 0:00:06]}  c3 {[%clk 0:00:50]} 0-1


[Site "https://www.chess.com"]

[Event "Titled Tuesday Blitz April 05 Late 2022"]
[White "Hnydiuk, Aleksander"]
[Black "Goryachkina, Aleksandra"]
[WhiteFideId "1109057"]
[BlackFideId "4147103"]
[WhiteElo "2374"]
[BlackElo "2426"]
[Result "1-0"]
[Round "07"]
[TimeControl "180+1"]
[Date "2022.04.06"]
[WhiteClock "0:00:05"]
[BlackClock "0:00:02"]

1. Nf3 {[%clk 0:03:00]}  d5 {[%clk 0:02:59]} 2. d4 {[%clk 0:03:00]}  Nf6 {[%clk 0:02:59]} 3. c4 {[%clk 0:03:01]}  e6 {[%clk 0:02:58]} 4. g3 {[%clk 0:03:01]}  Be7 {[%clk 0:02:57]} 5. Bg2 {[%clk 0:03:02]}  O-O {[%clk 0:02:58]} 6. O-O {[%clk 0:03:02]}  dxc4 {[%clk 0:02:58]} 7. Qc2 {[%clk 0:03:03]}  a6 {[%clk 0:02:58]} 8. Qxc4 {[%clk 0:03:03]}  b5 {[%clk 0:02:57]} 9. Qc2 {[%clk 0:03:04]}  Bb7 {[%clk 0:02:58]} 10. Bd2 {[%clk 0:03:04]}  Ra7 {[%clk 0:02:46]} 11. Rc1 {[%clk 0:03:01]}  Be4 {[%clk 0:02:41]} 12. Qd1 {[%clk 0:03:02]}  Nbd7 {[%clk 0:02:36]} 13. Ba5 {[%clk 0:02:56]}  Qb8 {[%clk 0:02:03]} 14. Nbd2 {[%clk 0:02:56]}  Ba8 {[%clk 0:01:50]} 15. b4 {[%clk 0:02:55]}  Bd6 {[%clk 0:01:43]} 16. Qc2 {[%clk 0:02:41]}  e5 {[%clk 0:01:35]} 17. dxe5 {[%clk 0:02:33]}  Nxe5 {[%clk 0:01:35]} 18. Nxe5 {[%clk 0:02:33]}  Bxe5 {[%clk 0:01:32]} 19. Rab1 {[%clk 0:02:30]}  Bxg2 {[%clk 0:01:13]} 20. Kxg2 {[%clk 0:02:31]}  Re8 {[%clk 0:01:03]} 21. Nf3 {[%clk 0:02:30]}  Bd6 {[%clk 0:00:59]} 22. Nd4 {[%clk 0:02:29]}  Rb7 {[%clk 0:00:53]} 23. Qc6 {[%clk 0:02:19]}  Qa8 {[%clk 0:00:38]} 24. Rc2 {[%clk 0:02:07]}  Ne4 {[%clk 0:00:24]} 25. Kg1 {[%clk 0:02:02]}  Ng5 {[%clk 0:00:19]} 26. h4 {[%clk 0:01:58]}  Ne6 {[%clk 0:00:18]} 27. Nf5 {[%clk 0:01:52]}  Be5 {[%clk 0:00:11]} 28. Rd1 {[%clk 0:01:29]}  g6 {[%clk 0:00:08]} 29. Qd5 {[%clk 0:01:13]}  Rd8 {[%clk 0:00:01]} 30. Nh6+ {[%clk 0:01:05]}  Kf8 {[%clk 0:00:01]} 31. Qxe5 {[%clk 0:00:59]}  Rxd1+ {[%clk 0:00:01]} 32. Kh2 {[%clk 0:01:00]}  Rb8 {[%clk 0:00:02]} 33. f3 {[%clk 0:00:52]}  Qd5 {[%clk 0:00:02]} 34. Qh8+ {[%clk 0:00:49]}  Ke7 {[%clk 0:00:02]} 35. Qxb8 {[%clk 0:00:48]}  Rh1+ {[%clk 0:00:02]} 36. Kxh1 {[%clk 0:00:47]}  Qd1+ {[%clk 0:00:03]} 37. Kg2 {[%clk 0:00:48]}  Qxc2 {[%clk 0:00:03]} 38. Kf2 {[%clk 0:00:46]}  Qc3 {[%clk 0:00:02]} 39. Ng8+ {[%clk 0:00:45]}  Kd7 {[%clk 0:00:02]} 40. Qb7 {[%clk 0:00:41]}  Qd4+ {[%clk 0:00:02]} 41. Kg2 {[%clk 0:00:41]}  Qe3 {[%clk 0:00:02]} 42. Qd5+ {[%clk 0:00:40]}  Kc8 {[%clk 0:00:02]} 43. Qd3 {[%clk 0:00:39]}  Qe5 {[%clk 0:00:01]} 44. Nh6 {[%clk 0:00:37]}  Nd4 {[%clk 0:00:01]} 45. Nxf7 {[%clk 0:00:32]}  Qd5 {[%clk 0:00:01]} 46. Ng5 {[%clk 0:00:24]}  Qc4 {[%clk 0:00:01]} 47. Qxc4 {[%clk 0:00:19]}  bxc4 {[%clk 0:00:02]} 48. Kf2 {[%clk 0:00:18]}  c3 {[%clk 0:00:02]} 49. b5 {[%clk 0:00:16]}  c2 {[%clk 0:00:01]} 50. Bd2 {[%clk 0:00:16]}  axb5 {[%clk 0:00:02]} 51. Ke1 {[%clk 0:00:13]}  b4 {[%clk 0:00:02]} 52. Bc1 {[%clk 0:00:11]}  b3 {[%clk 0:00:02]} 53. axb3 {[%clk 0:00:12]}  Nxb3 {[%clk 0:00:02]} 54. Bb2 {[%clk 0:00:12]}  c1=Q+ {[%clk 0:00:03]} 55. Bxc1 {[%clk 0:00:12]}  Nxc1 {[%clk 0:00:04]} 56. Kd2 {[%clk 0:00:12]}  Nb3+ {[%clk 0:00:04]} 57. Kc3 {[%clk 0:00:12]}  Nc5 {[%clk 0:00:04]} 58. Nxh7 {[%clk 0:00:12]}  Ne6 {[%clk 0:00:03]} 59. Kd3 {[%clk 0:00:11]}  Kd7 {[%clk 0:00:04]} 60. Ke4 {[%clk 0:00:11]}  Ke7 {[%clk 0:00:04]} 61. Ke5 {[%clk 0:00:11]}  c5 {[%clk 0:00:04]} 62. Ng5 {[%clk 0:00:11]}  Nd4 {[%clk 0:00:04]} 63. e3 {[%clk 0:00:10]}  Ne2 {[%clk 0:00:04]} 64. g4 {[%clk 0:00:09]}  c4 {[%clk 0:00:05]} 65. Ke4 {[%clk 0:00:08]}  c3 {[%clk 0:00:02]} 66. Kd3 {[%clk 0:00:07]}  Ng3 {[%clk 0:00:01]} 67. Kxc3 {[%clk 0:00:07]}  Kf6 {[%clk 0:00:02]} 68. Ne4+ {[%clk 0:00:05]} 1-0


[Site "https://www.chess.com"]

[Event "Titled Tuesday Blitz April 05 Late 2022"]
[White "Ibarra Jerez, Jose Carlos"]
[Black "Harshavardhan G B"]
[WhiteFideId "2226332"]
[BlackFideId "25059009"]
[WhiteElo "2626"]
[BlackElo "1831"]
[Result "1-0"]
[Round "07"]
[TimeControl "180+1"]
[Date "2022.04.05"]
[WhiteClock "0:00:17"]
[BlackClock "0:01:43"]

1. e4 {[%clk 0:03:00]}  e5 {[%clk 0:02:58]} 2. Nf3 {[%clk 0:03:00]}  Nc6 {[%clk 0:02:59]} 3. d4 {[%clk 0:03:00]}  exd4 {[%clk 0:02:58]} 4. Nxd4 {[%clk 0:03:01]}  Bc5 {[%clk 0:02:58]} 5. Nb3 {[%clk 0:03:01]}  Bb6 {[%clk 0:02:58]} 6. Qe2 {[%clk 0:03:01]}  Nge7 {[%clk 0:02:58]} 7. Nc3 {[%clk 0:03:00]}  O-O {[%clk 0:02:58]} 8. Be3 {[%clk 0:03:00]}  d6 {[%clk 0:02:58]} 9. O-O-O {[%clk 0:02:59]}  f5 {[%clk 0:02:59]} 10. f4 {[%clk 0:02:57]}  fxe4 {[%clk 0:02:58]} 11. g3 {[%clk 0:02:57]}  Bxe3+ {[%clk 0:02:58]} 12. Qxe3 {[%clk 0:02:57]}  a5 {[%clk 0:02:58]} 13. Bc4+ {[%clk 0:02:44]}  Kh8 {[%clk 0:02:57]} 14. a3 {[%clk 0:02:27]}  Nf5 {[%clk 0:02:55]} 15. Qxe4 {[%clk 0:02:24]}  Re8 {[%clk 0:02:55]} 16. Qd3 {[%clk 0:02:00]}  Ne3 {[%clk 0:02:53]} 17. Rde1 {[%clk 0:01:25]}  Bf5 {[%clk 0:02:51]} 18. Qe2 {[%clk 0:01:13]}  a4 {[%clk 0:02:44]} 19. Na1 {[%clk 0:01:01]}  Nd4 {[%clk 0:02:41]} 20. Qf2 {[%clk 0:00:51]}  Ndxc2 {[%clk 0:02:26]} 21. Nxc2 {[%clk 0:00:51]}  Nxc2 {[%clk 0:02:27]} 22. Rxe8+ {[%clk 0:00:48]}  Qxe8 {[%clk 0:02:28]} 23. g4 {[%clk 0:00:39]}  Qe3+ {[%clk 0:02:15]} 24. Qd2 {[%clk 0:00:26]}  Qf3 {[%clk 0:02:10]} 25. gxf5 {[%clk 0:00:25]}  Qxh1+ {[%clk 0:02:03]} 26. Kxc2 {[%clk 0:00:25]}  c6 {[%clk 0:01:54]} 27. Qxd6 {[%clk 0:00:19]}  Qxh2+ {[%clk 0:01:52]} 28. Kb1 {[%clk 0:00:19]}  Qg1+ {[%clk 0:01:52]} 29. Ka2 {[%clk 0:00:19]}  Qe3 {[%clk 0:01:51]} 30. f6 {[%clk 0:00:17]}  b5 {[%clk 0:01:43]} 31. f7 {[%clk 0:00:17]} 1-0


[Site "https://www.chess.com"]

[Event "Titled Tuesday Blitz April 05 Late 2022"]
[White "Jaferian, Koosha"]
[Black "Ilyasli, Ughur"]
[WhiteFideId "12507440"]
[BlackFideId "13416197"]
[WhiteElo "2030"]
[BlackElo "2045"]
[Result "1/2-1/2"]
[Round "07"]
[TimeControl "180+1"]
[Date "2022.04.06"]
[WhiteClock "0:01:22"]
[BlackClock "0:00:15"]

1. Nf3 {[%clk 0:03:00]}  Nf6 {[%clk 0:02:58]} 2. b3 {[%clk 0:03:00]}  g6 {[%clk 0:02:58]} 3. Bb2 {[%clk 0:03:01]}  Bg7 {[%clk 0:02:58]} 4. g3 {[%clk 0:03:02]}  d5 {[%clk 0:02:54]} 5. c4 {[%clk 0:03:01]}  c6 {[%clk 0:02:44]} 6. Bg2 {[%clk 0:02:59]}  O-O {[%clk 0:02:43]} 7. O-O {[%clk 0:03:00]}  Bg4 {[%clk 0:02:43]} 8. d4 {[%clk 0:03:00]}  dxc4 {[%clk 0:02:36]} 9. bxc4 {[%clk 0:03:00]}  Qb6 {[%clk 0:02:36]} 10. Qb3 {[%clk 0:02:58]}  Na6 {[%clk 0:02:12]} 11. e3 {[%clk 0:02:57]}  Qxb3 {[%clk 0:01:55]} 12. axb3 {[%clk 0:02:58]}  Nb4 {[%clk 0:01:51]} 13. Ne5 {[%clk 0:02:51]}  Bf5 {[%clk 0:01:41]} 14. Nc3 {[%clk 0:02:49]}  Bc2 {[%clk 0:01:27]} 15. Ra3 {[%clk 0:02:38]}  Rfd8 {[%clk 0:01:11]} 16. Rc1 {[%clk 0:02:37]}  Nd7 {[%clk 0:01:07]} 17. Nxd7 {[%clk 0:02:35]}  Rxd7 {[%clk 0:01:08]} 18. Na4 {[%clk 0:02:36]}  Bf5 {[%clk 0:00:37]} 19. Nc5 {[%clk 0:02:36]}  Rc7 {[%clk 0:00:34]} 20. e4 {[%clk 0:02:34]}  Bc8 {[%clk 0:00:32]} 21. Bc3 {[%clk 0:02:34]}  Na6 {[%clk 0:00:31]} 22. Nxa6 {[%clk 0:02:33]}  bxa6 {[%clk 0:00:32]} 23. d5 {[%clk 0:02:27]}  Bxc3 {[%clk 0:00:30]} 24. Rxc3 {[%clk 0:02:28]}  cxd5 {[%clk 0:00:31]} 25. exd5 {[%clk 0:02:29]}  Rb8 {[%clk 0:00:30]} 26. Re3 {[%clk 0:02:26]}  Rb4 {[%clk 0:00:28]} 27. Be4 {[%clk 0:02:14]}  Kf8 {[%clk 0:00:24]} 28. Bc2 {[%clk 0:02:14]}  Rc5 {[%clk 0:00:21]} 29. h4 {[%clk 0:02:13]}  a5 {[%clk 0:00:21]} 30. Bd3 {[%clk 0:01:47]}  Bd7 {[%clk 0:00:19]} 31. Bf1 {[%clk 0:01:44]}  a4 {[%clk 0:00:15]} 32. bxa4 {[%clk 0:01:45]}  Bxa4 {[%clk 0:00:15]} 33. Ra1 {[%clk 0:01:44]}  a5 {[%clk 0:00:15]} 34. Rea3 {[%clk 0:01:44]}  Bb3 {[%clk 0:00:13]} 35. Rxa5 {[%clk 0:01:25]}  Rxa5 {[%clk 0:00:14]} 36. Rxa5 {[%clk 0:01:25]}  Bxc4 {[%clk 0:00:15]} 37. Bg2 {[%clk 0:01:26]}  Rb1+ {[%clk 0:00:14]} 38. Kh2 {[%clk 0:01:26]}  Rb2 {[%clk 0:00:14]} 39. Kg1 {[%clk 0:01:21]}  Rb1+ {[%clk 0:00:14]} 40. Kh2 {[%clk 0:01:21]}  Rb2 {[%clk 0:00:15]} 41. Kg1 {[%clk 0:01:22]}  Rb1+ {[%clk 0:00:15]} 1/2-1/2


[Site "https://www.chess.com"]

[Event "Titled Tuesday Blitz April 05 Late 2022"]
[White "Karttunen, Mika"]
[Black "Svane, Frederik"]
[WhiteFideId "502081"]
[BlackFideId "12923044"]
[WhiteElo "2343"]
[BlackElo "2459"]
[Result "0-1"]
[Round "07"]
[TimeControl "180+1"]
[Date "2022.04.05"]
[WhiteClock "0:01:13"]
[BlackClock "0:02:03"]

1. e4 {[%clk 0:03:00]}  c5 {[%clk 0:03:00]} 2. Nf3 {[%clk 0:03:00]}  d6 {[%clk 0:03:00]} 3. d4 {[%clk 0:03:01]}  cxd4 {[%clk 0:03:01]} 4. Nxd4 {[%clk 0:03:01]}  Nf6 {[%clk 0:03:02]} 5. Nc3 {[%clk 0:03:02]}  Nc6 {[%clk 0:03:02]} 6. Bc4 {[%clk 0:03:01]}  Qb6 {[%clk 0:02:59]} 7. Nb3 {[%clk 0:02:55]}  Qc7 {[%clk 0:02:58]} 8. Be2 {[%clk 0:02:49]}  e6 {[%clk 0:02:57]} 9. g4 {[%clk 0:02:48]}  Be7 {[%clk 0:02:55]} 10. g5 {[%clk 0:02:48]}  Nd7 {[%clk 0:02:55]} 11. h4 {[%clk 0:02:45]}  a6 {[%clk 0:02:55]} 12. h5 {[%clk 0:02:40]}  b5 {[%clk 0:02:54]} 13. a3 {[%clk 0:02:40]}  Bb7 {[%clk 0:02:54]} 14. Rg1 {[%clk 0:02:40]}  Nce5 {[%clk 0:02:51]} 15. f4 {[%clk 0:02:19]}  Nc4 {[%clk 0:02:51]} 16. f5 {[%clk 0:02:18]}  Nde5 {[%clk 0:02:42]} 17. Nd4 {[%clk 0:02:04]}  exf5 {[%clk 0:02:29]} 18. exf5 {[%clk 0:01:55]}  O-O-O {[%clk 0:02:22]} 19. f6 {[%clk 0:01:49]}  gxf6 {[%clk 0:02:22]} 20. gxf6 {[%clk 0:01:50]}  Bxf6 {[%clk 0:02:22]} 21. Nf5 {[%clk 0:01:20]}  Qc5 {[%clk 0:02:13]} 22. Rf1 {[%clk 0:01:13]}  Rhe8 {[%clk 0:02:03]} 0-1


[Site "https://www.chess.com"]

[Event "Titled Tuesday Blitz April 05 Late 2022"]
[White "Khripachenko, Alexander"]
[Black "Sanchez Alvares, Kelvin Antonio"]
[WhiteFideId "54184975"]
[BlackFideId "3906680"]
[WhiteElo "2193"]
[BlackElo "2193"]
[Result "0-1"]
[Round "07"]
[TimeControl "180+1"]
[Date "2022.04.06"]
[WhiteClock "0:00:02"]
[BlackClock "0:00:12"]

1. e4 {[%clk 0:03:00]}  e5 {[%clk 0:02:59]} 2. Nf3 {[%clk 0:03:00]}  Nc6 {[%clk 0:02:59]} 3. Nc3 {[%clk 0:03:01]}  Bc5 {[%clk 0:02:58]} 4. Nxe5 {[%clk 0:03:01]}  Nxe5 {[%clk 0:02:59]} 5. d4 {[%clk 0:03:01]}  Bd6 {[%clk 0:03:00]} 6. dxe5 {[%clk 0:03:01]}  Bxe5 {[%clk 0:03:01]} 7. Bd3 {[%clk 0:03:02]}  Nf6 {[%clk 0:02:55]} 8. O-O {[%clk 0:03:01]}  O-O {[%clk 0:02:49]} 9. Ne2 {[%clk 0:02:42]}  d5 {[%clk 0:02:38]} 10. exd5 {[%clk 0:02:42]}  Qxd5 {[%clk 0:02:35]} 11. Ng3 {[%clk 0:02:20]}  Bg4 {[%clk 0:02:24]} 12. Qd2 {[%clk 0:02:20]}  Rad8 {[%clk 0:02:11]} 13. Qg5 {[%clk 0:02:16]}  Bd4 {[%clk 0:01:49]} 14. Qh4 {[%clk 0:02:07]}  h6 {[%clk 0:01:39]} 15. h3 {[%clk 0:01:41]}  Be6 {[%clk 0:01:21]} 16. Re1 {[%clk 0:01:24]}  Rfe8 {[%clk 0:01:20]} 17. Bd2 {[%clk 0:01:12]}  Bxb2 {[%clk 0:01:13]} 18. Rad1 {[%clk 0:01:13]}  Qc5 {[%clk 0:01:04]} 19. Be3 {[%clk 0:01:06]}  Qa5 {[%clk 0:00:55]} 20. a4 {[%clk 0:00:29]}  Nd5 {[%clk 0:00:45]} 21. Bxh6 {[%clk 0:00:20]}  gxh6 {[%clk 0:00:35]} 22. Qxh6 {[%clk 0:00:21]}  Bg7 {[%clk 0:00:23]} 23. Qh7+ {[%clk 0:00:20]}  Kf8 {[%clk 0:00:23]} 24. Nh5 {[%clk 0:00:21]}  Qc3 {[%clk 0:00:20]} 25. Re4 {[%clk 0:00:15]}  Ne7 {[%clk 0:00:16]} 26. Rde1 {[%clk 0:00:12]}  Bf5 {[%clk 0:00:13]} 27. Qxg7+ {[%clk 0:00:08]}  Qxg7 {[%clk 0:00:13]} 28. Nxg7 {[%clk 0:00:09]}  Bxe4 {[%clk 0:00:13]} 29. Nxe8 {[%clk 0:00:10]}  Bxd3 {[%clk 0:00:13]} 30. Nf6 {[%clk 0:00:06]}  Bxc2 {[%clk 0:00:13]} 31. Rc1 {[%clk 0:00:06]}  Rd1+ {[%clk 0:00:11]} 32. Rxd1 {[%clk 0:00:05]}  Bxd1 {[%clk 0:00:12]} 33. f3 {[%clk 0:00:05]}  Bxa4 {[%clk 0:00:12]} 34. Kf2 {[%clk 0:00:05]}  Bc6 {[%clk 0:00:12]} 35. g4 {[%clk 0:00:05]}  b5 {[%clk 0:00:11]} 36. h4 {[%clk 0:00:05]}  a5 {[%clk 0:00:11]} 37. Ke3 {[%clk 0:00:06]}  a4 {[%clk 0:00:11]} 38. Kd2 {[%clk 0:00:05]}  b4 {[%clk 0:00:11]} 39. Kc2 {[%clk 0:00:05]}  Bxf3 {[%clk 0:00:11]} 40. h5 {[%clk 0:00:05]}  b3+ {[%clk 0:00:11]} 41. Kb2 {[%clk 0:00:04]}  Nd5 {[%clk 0:00:11]} 42. Nd7+ {[%clk 0:00:04]}  Kg7 {[%clk 0:00:11]} 43. Ne5 {[%clk 0:00:04]}  Be2 {[%clk 0:00:11]} 44. Ka3 {[%clk 0:00:04]}  Nb6 {[%clk 0:00:11]} 45. g5 {[%clk 0:00:02]}  Nc4+ {[%clk 0:00:11]} 46. Nxc4 {[%clk 0:00:02]}  Bxc4 {[%clk 0:00:12]} 0-1


[Site "https://www.chess.com"]

[Event "Titled Tuesday Blitz April 05 Late 2022"]
[White "Kobalia, Mikhail"]
[Black "Jobava, Baadur"]
[WhiteFideId "4119150"]
[BlackFideId "13601520"]
[WhiteElo "2667"]
[BlackElo "2617"]
[Result "0-1"]
[Round "07"]
[TimeControl "180+1"]
[Date "2022.04.05"]
[WhiteClock "0:00:02"]
[BlackClock "0:00:40"]

1. e4 {[%clk 0:03:00]}  e6 {[%clk 0:02:59]} 2. d3 {[%clk 0:02:59]}  d5 {[%clk 0:03:00]} 3. Nd2 {[%clk 0:02:59]}  b6 {[%clk 0:02:58]} 4. g3 {[%clk 0:02:56]}  Bb7 {[%clk 0:02:57]} 5. Bg2 {[%clk 0:02:56]}  g6 {[%clk 0:02:57]} 6. Ngf3 {[%clk 0:02:53]}  Bg7 {[%clk 0:02:57]} 7. O-O {[%clk 0:02:54]}  Ne7 {[%clk 0:02:57]} 8. Re1 {[%clk 0:02:54]}  O-O {[%clk 0:02:56]} 9. c3 {[%clk 0:02:53]}  c5 {[%clk 0:02:54]} 10. e5 {[%clk 0:02:53]}  Nbc6 {[%clk 0:02:53]} 11. d4 {[%clk 0:02:53]}  Rc8 {[%clk 0:02:52]} 12. Nf1 {[%clk 0:02:47]}  cxd4 {[%clk 0:02:50]} 13. cxd4 {[%clk 0:02:47]}  Nb4 {[%clk 0:02:50]} 14. Ne3 {[%clk 0:02:47]}  Ba6 {[%clk 0:02:46]} 15. Qa4 {[%clk 0:02:27]}  Nec6 {[%clk 0:02:46]} 16. a3 {[%clk 0:02:16]}  Nd3 {[%clk 0:02:45]} 17. Qxa6 {[%clk 0:02:15]}  Nxe1 {[%clk 0:02:44]} 18. Nxe1 {[%clk 0:02:15]}  Nxd4 {[%clk 0:02:45]} 19. f4 {[%clk 0:02:07]}  Nb3 {[%clk 0:02:44]} 20. Rb1 {[%clk 0:01:55]}  Nxc1 {[%clk 0:02:42]} 21. b4 {[%clk 0:01:47]}  Rc3 {[%clk 0:02:34]} 22. Nd1 {[%clk 0:01:42]}  Rc7 {[%clk 0:02:27]} 23. Ne3 {[%clk 0:01:38]}  Qe7 {[%clk 0:02:24]} 24. N3c2 {[%clk 0:01:36]}  Na2 {[%clk 0:02:22]} 25. Nd4 {[%clk 0:01:33]}  Nc3 {[%clk 0:02:22]} 26. Ra1 {[%clk 0:01:30]}  Rfc8 {[%clk 0:02:19]} 27. Nef3 {[%clk 0:01:30]}  Ne4 {[%clk 0:02:07]} 28. Bf1 {[%clk 0:01:29]}  Rc1 {[%clk 0:02:04]} 29. Kg2 {[%clk 0:01:26]}  Rxa1 {[%clk 0:02:03]} 30. Qxc8+ {[%clk 0:01:25]}  Qf8 {[%clk 0:02:01]} 31. Qb7 {[%clk 0:01:25]}  Rxa3 {[%clk 0:01:59]} 32. Nc6 {[%clk 0:01:21]}  Bh6 {[%clk 0:01:54]} 33. Ne7+ {[%clk 0:01:17]}  Kg7 {[%clk 0:01:53]} 34. Nd4 {[%clk 0:01:15]}  Kh8 {[%clk 0:01:22]} 35. Bb5 {[%clk 0:01:14]}  a5 {[%clk 0:01:14]} 36. Qd7 {[%clk 0:00:52]}  axb4 {[%clk 0:01:09]} 37. Ndc6 {[%clk 0:00:53]}  b3 {[%clk 0:00:51]} 38. Nd8 {[%clk 0:00:52]}  Ra2+ {[%clk 0:00:51]} 39. Kg1 {[%clk 0:00:47]}  b2 {[%clk 0:00:48]} 40. Bd3 {[%clk 0:00:48]}  Nc5 {[%clk 0:00:47]} 41. Qc8 {[%clk 0:00:24]}  Nxd3 {[%clk 0:00:42]} 42. Nxf7+ {[%clk 0:00:02]}  Kg7 {[%clk 0:00:40]} 0-1


[Site "https://www.chess.com"]

[Event "Titled Tuesday Blitz April 05 Late 2022"]
[White "Kosteniuk, Alexandra"]
[Black "Iskusnyh, Sergei"]
[WhiteFideId "4128125"]
[BlackFideId "4120027"]
[WhiteElo "2469"]
[BlackElo "2492"]
[Result "1-0"]
[Round "07"]
[TimeControl "180+1"]
[Date "2022.04.05"]
[WhiteClock "0:00:10"]
[BlackClock "0:00:01"]

1. e4 {[%clk 0:03:00]}  e6 {[%clk 0:02:59]} 2. d4 {[%clk 0:03:00]}  d5 {[%clk 0:02:59]} 3. exd5 {[%clk 0:03:00]}  exd5 {[%clk 0:02:59]} 4. Nf3 {[%clk 0:03:01]}  Nf6 {[%clk 0:02:59]} 5. Bd3 {[%clk 0:03:00]}  c5 {[%clk 0:02:59]} 6. O-O {[%clk 0:02:59]}  Nc6 {[%clk 0:02:58]} 7. Re1+ {[%clk 0:02:58]}  Be7 {[%clk 0:02:58]} 8. dxc5 {[%clk 0:02:57]}  O-O {[%clk 0:02:58]} 9. Bg5 {[%clk 0:02:53]}  Bxc5 {[%clk 0:02:54]} 10. Nc3 {[%clk 0:02:51]}  Be6 {[%clk 0:02:51]} 11. Bh4 {[%clk 0:02:44]}  h6 {[%clk 0:02:47]} 12. h3 {[%clk 0:02:39]}  a6 {[%clk 0:02:46]} 13. Ne2 {[%clk 0:02:36]}  Qb6 {[%clk 0:02:29]} 14. Bxf6 {[%clk 0:02:19]}  Bxf2+ {[%clk 0:02:28]} 15. Kh1 {[%clk 0:02:19]}  gxf6 {[%clk 0:02:28]} 16. Rf1 {[%clk 0:02:19]}  Ne5 {[%clk 0:02:18]} 17. Ned4 {[%clk 0:02:11]}  Bg3 {[%clk 0:02:01]} 18. Nxe6 {[%clk 0:02:03]}  fxe6 {[%clk 0:02:01]} 19. Nxe5 {[%clk 0:02:00]}  Bxe5 {[%clk 0:01:55]} 20. Qg4+ {[%clk 0:01:59]}  Kf7 {[%clk 0:01:54]} 21. Rae1 {[%clk 0:01:42]}  Qd4 {[%clk 0:01:30]} 22. Qg6+ {[%clk 0:01:38]}  Ke7 {[%clk 0:01:29]} 23. c3 {[%clk 0:01:37]}  Qh4 {[%clk 0:00:51]} 24. Rxe5 {[%clk 0:01:33]}  fxe5 {[%clk 0:00:51]} 25. Qg7+ {[%clk 0:01:33]}  Kd6 {[%clk 0:00:49]} 26. Rxf8 {[%clk 0:01:33]}  Rxf8 {[%clk 0:00:50]} 27. Qxf8+ {[%clk 0:01:33]}  Kc6 {[%clk 0:00:49]} 28. Qe8+ {[%clk 0:01:16]}  Kd6 {[%clk 0:00:49]} 29. Qb8+ {[%clk 0:01:15]}  Kd7 {[%clk 0:00:40]} 30. Qxe5 {[%clk 0:01:15]}  Qf2 {[%clk 0:00:40]} 31. Qe2 {[%clk 0:01:09]}  Qf4 {[%clk 0:00:38]} 32. b4 {[%clk 0:00:57]}  Qc1+ {[%clk 0:00:37]} 33. Kh2 {[%clk 0:00:57]}  Qxc3 {[%clk 0:00:37]} 34. b5 {[%clk 0:00:53]}  axb5 {[%clk 0:00:33]} 35. Bxb5+ {[%clk 0:00:53]}  Kd6 {[%clk 0:00:33]} 36. Be8 {[%clk 0:00:50]}  Qf6 {[%clk 0:00:28]} 37. Bh5 {[%clk 0:00:46]}  e5 {[%clk 0:00:27]} 38. Qb2 {[%clk 0:00:41]}  Qf4+ {[%clk 0:00:22]} 39. g3 {[%clk 0:00:41]}  Qe3 {[%clk 0:00:22]} 40. Kg2 {[%clk 0:00:37]}  e4 {[%clk 0:00:22]} 41. Bg4 {[%clk 0:00:35]}  b6 {[%clk 0:00:20]} 42. Qb4+ {[%clk 0:00:29]}  Ke5 {[%clk 0:00:18]} 43. Qe7+ {[%clk 0:00:26]}  Kd4 {[%clk 0:00:17]} 44. Qb4+ {[%clk 0:00:23]}  Ke5 {[%clk 0:00:17]} 45. Qb2+ {[%clk 0:00:23]}  Kd6 {[%clk 0:00:16]} 46. h4 {[%clk 0:00:23]}  Kc5 {[%clk 0:00:11]} 47. Bd7 {[%clk 0:00:20]}  Kd6 {[%clk 0:00:09]} 48. Be8 {[%clk 0:00:19]}  Qf3+ {[%clk 0:00:09]} 49. Kh2 {[%clk 0:00:19]}  Qe3 {[%clk 0:00:08]} 50. a4 {[%clk 0:00:18]}  Ke6 {[%clk 0:00:07]} 51. Bh5 {[%clk 0:00:16]}  Kd6 {[%clk 0:00:06]} 52. Bg4 {[%clk 0:00:16]}  Kc5 {[%clk 0:00:05]} 53. Qb5+ {[%clk 0:00:15]}  Kd6 {[%clk 0:00:05]} 54. Qb4+ {[%clk 0:00:14]}  Ke5 {[%clk 0:00:04]} 55. Qb2+ {[%clk 0:00:13]}  Kd6 {[%clk 0:00:04]} 56. Bh3 {[%clk 0:00:11]}  Qc5 {[%clk 0:00:03]} 57. Qf6+ {[%clk 0:00:10]}  Kc7 {[%clk 0:00:02]} 58. Qf4+ {[%clk 0:00:10]}  Kb7 {[%clk 0:00:02]} 59. Bg2 {[%clk 0:00:10]}  Ka6 {[%clk 0:00:02]} 60. Qxh6 {[%clk 0:00:10]}  Ka5 {[%clk 0:00:02]} 61. Qd2+ {[%clk 0:00:09]}  Kxa4 {[%clk 0:00:01]} 62. h5 {[%clk 0:00:10]}  d4 {[%clk 0:00:01]} 63. Bxe4 {[%clk 0:00:09]}  Qxh5+ {[%clk 0:00:01]} 64. Kg2 {[%clk 0:00:09]}  Qe5 {[%clk 0:00:01]} 65. Qc2+ {[%clk 0:00:09]}  Kb4 {[%clk 0:00:02]} 66. Qb2+ {[%clk 0:00:09]}  Kc4 {[%clk 0:00:01]} 67. Qa2+ {[%clk 0:00:10]}  Kc3 {[%clk 0:00:01]} 68. Qe2 {[%clk 0:00:09]}  Kb4 {[%clk 0:00:01]} 69. Qd3 {[%clk 0:00:10]} 1-0


[Site "https://www.chess.com"]